Cogmind - Beta 13 @@@ ROGUE MODE // 2024.07.14 @ 23:36:41 Player: swetpototo Result: Destroyed by H-66 Slayer with Heavy Assault Rifle Performance ------------- Evolutions (5) 2500 Regions Visited (12) 2400 Robots Destroyed (48) 240 Value Destroyed (1313) 1313 Prototype IDs (15) 300 Alien Tech Used (0) 0 Bonus (698) 698 TOTAL SCORE: 7451 Bonus ------- Follower Combat Kills 398 Met Data Miner 300 Cogmind --------- Core Integrity 0/1000 Matter 13/300 Energy 74/100 System Corruption 5% Temperature Cool (0) Movement Core (50) Location -5/Factory Parts ------- > --- POWER (2) -------- (None) > --- PROPULSION (4) --- (None) > --- UTILITY (8) ------ Improved Coolant Injector Enhanced Optical Array Launcher Guidance Computer Launcher Guidance Computer > --- WEAPON (3) ------- (None) > --- INVENTORY (5) ---- Armored Huge Wheel Advanced Shield Generator Peak State ------------ > --- POWER ------------ Fission Core > --- PROPULSION ------- Nuclear Pulse Thruster Field Propulsion Drive Nuclear Pulse Array > --- UTILITY ---------- Improved Coolant Injector Enhanced Optical Array Launcher Guidance Computer Launcher Guidance Computer Improved Reaction Control System EM Disruption Field Advanced Shield Generator Hacking Suite > --- WEAPON ----------- Improved Concussive RPG Smartbomb Launcher > --- INVENTORY -------- Neutrino Core Armored Huge Wheel Wave Gun Magnetic Acceleration Cannon [Rating: 85] Favorites ----------- Power Improved Deuterium Engine Engine Improved Deuterium Engine Power Core Light Nuclear Core Reactor Light Antimatter Reactor Propulsion Aluminum Leg Treads Improved Medium Treads Leg Aluminum Leg Flight Unit Nuclear Pulse Thruster Utility Medium Storage Unit Device ECM Suite Storage Medium Storage Unit Processor Visual Processing Unit Hackware System Shield Protection Hardened Medium Armor Plating Weapon Light Assault Rifle Energy Gun Thermic Laser Ballistic Gun Light Assault Rifle Ballistic Cannon Advanced Assault Cannon Launcher Improved Concussive RPG Slashing Weapon Axe Build | -11 -10 -10 -10 -9 -8 -7 -7 -7 -7 -6 -6 -5 ------- Run | Yrd Mat Min Exi Min Mat Fac Low Low Dat Pro Fac Fac Slots Evolved 10 | . . . . . 4 2 . . . . 2 2 Power 1 | . . . . . . 1 . . . . . . Propulsion 2 | . . . . . 2 . . . . . . . Utility 6 | . . . . . 2 . . . . . 2 2 Weapon 1 | . . . . . . 1 . . . . . . Parts Attached 103 | 9 3 . . . 21 2 11 . . 11 24 22 Power 13 | 1 . . . . 3 1 1 . . 1 3 3 Engine 4 | 1 . . . . 2 . . . . 1 . . Core 8 | . . . . . 1 1 1 . . . 2 3 Reactor 1 | . . . . . . . . . . . 1 . Propulsion 28 | 2 . . . . 6 . 3 . . 2 13 2 Treads 12 | . . . . . . . . . . . 12 . Leg 12 | 2 . . . . 6 . 3 . . 1 . . Wheel . | . . . . . . . . . . . . . Hover . | . . . . . . . . . . . . . Flight 4 | . . . . . . . . . . 1 1 2 Utility 25 | 1 2 . . . 6 . 1 . . 1 5 9 Device 12 | . 2 . . . 1 . 1 . . 1 2 5 Storage 2 | 1 . . . . 1 . . . . . . . Processor 6 | . . . . . 1 . . . . . 2 3 Hackware 3 | . . . . . 2 . . . . . . 1 Protection 2 | . . . . . 1 . . . . . 1 . Artifact . | . . . . . . . . . . . . . Weapon 37 | 5 1 . . . 6 1 6 . . 7 3 8 Energy Gun 8 | 1 . . . . 1 . 1 . . 1 1 3 Energy Cannon . | . . . . . . . . . . . . . Ballistic Gun 18 | 4 1 . . . 5 . 3 . . 4 1 . Ballistic Cannon 3 | . . . . . . 1 1 . . . . 1 Launcher 5 | . . . . . . . 1 . . . . 4 Special Weapon . | . . . . . . . . . . . . . Impact Weapon . | . . . . . . . . . . . . . Slashing Weapon 3 | . . . . . . . . . . 2 1 . Piercing Weapon . | . . . . . . . . . . . . . Special Melee Weapon . | . . . . . . . . . . . . . Unidentified Prototypes 2 | . . . . . 1 . . . . 1 . . Parts Lost 61 | . . . . . 8 1 7 11 . 3 22 9 Power 9 | . . . . . 2 . 1 2 . . 3 1 Propulsion 20 | . . . . . 2 . 3 4 . 1 7 3 Utility 14 | . . . . . 2 . 1 2 . . 7 2 Weapon 18 | . . . . . 2 1 2 3 . 2 5 3 Highest Loss Streak 14 | . . . . . 5 1 5 11 . 3 14 9 To Critical Strikes 2 | . . . . . . . . . . . 1 1 Average Slot Usage (%) 67 | . 98 100 100 100 80 91 93 94 15 36 63 56 Engine 6 | . 14 14 14 14 4 7 7 6 . 5 1 . Core 1 | . . . . . 3 7 5 6 . . 3 3 Treads 1 | . . . . . . . . . . . 18 . Leg 14 | . 28 28 28 28 29 30 29 27 . . . . Device 5 | . 12 14 14 14 4 . . 6 . . 5 13 Storage 7 | . 14 14 14 14 9 7 7 7 7 7 2 . Processor 6 | . . . . . 3 7 7 7 7 7 11 15 Hackware 2 | . . . . . 6 15 13 6 . . . 1 Energy Gun 2 | . . . . . . . 5 6 . 3 3 . Ballistic Gun 9 | . 28 28 28 28 17 9 7 14 . . 2 . Slashing Weapon 3 | . . . . . . . . . . 10 7 . Naked Turns 65 | . . . . . . . . . . . 65 . Heaviest Build 40 | 12 14 14 14 14 25 32 40 40 10 31 37 30 Greatest Support 120 | 20 20 20 20 20 50 50 50 45 3 28 120 26 Greatest Overweight (x) 9 | 1 . . . . 7 . . 3 3 9 1 4 Average Overweight (x) . | . . . . . . . . . 3 6 . . Largest Inventory Capacity 10 | 8 8 8 8 8 10 10 10 10 10 10 10 5 Average Capacity 8 | 7 8 8 8 8 9 10 10 10 10 10 6 5 Most Carried 10 | 3 5 6 6 8 10 10 10 9 9 9 10 5 Average Carried 7 | . 3 5 6 7 9 9 8 9 9 8 6 4 Final Capacity 10 | 8 8 8 8 8 10 10 10 10 10 10 5 5 Final Carried 10 | 1 5 6 6 8 10 10 9 9 9 9 5 3 Class Distribution -------------------- 71% | Mutant 9% | Hacker-Mutant 7% | Scavenger-Mutant 5% | Scavenger-Gunner 3% | Scavenger-Skirmisher Dominant Class ---------------- Mutant | -10/Materials Mutant | -10/Mines Mutant | -10/Exiles Mutant | -9/Mines Scavenger-Mutant | -8/Materials Hacker-Mutant | -7/Factory Scavenger-Skirmisher | -7/Lower Caves Scavenger-Gunner | -7/Lower Caves Mutant | -7/Data Miner Mutant | -6/Proximity Caves Mutant | -6/Factory Mutant | -5/Factory Resources | -11 -10 -10 -10 -9 -8 -7 -7 -7 -7 -6 -6 -5 ----------- Run | Yrd Mat Min Exi Min Mat Fac Low Low Dat Pro Fac Fac Matter Collected 1774 | 215 213 . . . 610 . 395 9 . 119 189 24 Remotely . | . . . . . . . . . . . . . Salvage Created 1700 | . 100 27 . . 787 . 193 19 . 83 491 . Parts 100 | . 8 3 . . 58 . 8 2 . 5 16 . Haulers Intercepted 3 | . . . . . 3 . . . . . . . Recyclers Shooed 2 | . . . . . 1 . . . . . 1 . Parts Field Recycled . | . . . . . . . . . . . . . Retrieved Matter . | . . . . . . . . . . . . . Parts Self-Destructed 30 | . . . . . . . 8 10 . 12 . . Prevented . | . . . . . . . . . . . . . Kills | -11 -10 -10 -10 -9 -8 -7 -7 -7 -7 -6 -6 -5 ------- Run | Yrd Mat Min Exi Min Mat Fac Low Low Dat Pro Fac Fac Combat Hostiles Destroyed 36 | . 4 . . . 14 . 8 1 . 3 6 . Melee 5 | . . . . . . . . . . . 5 . Guns 24 | . 4 . . . 14 . 1 1 . 3 1 . Cannons 3 | . . . . . . . 3 . . . . . AOE 4 | . . . . . . . 4 . . . . . Classes Destroyed 11 | . 3 1 . . 7 . . . . . . . Worker 2 | . . . . . 2 . . . . . . . Builder 2 | . . . . . 2 . . . . . . . Tunneler 1 | . . 1 . . . . . . . . . . Hauler 3 | . . . . . 3 . . . . . . . Recycler 3 | . . . . . 2 . . . . . 1 . Watcher 1 | . 1 . . . . . . . . . . . Swarmer 17 | . 3 . . . 6 . 4 1 . 3 . . Grunt 13 | . 1 . . . 3 . 3 . . . 6 . Duelist 1 | . . . . . 1 . . . . . . . Sentry 4 | . . . . . 3 . 1 . . . . . Hunter 1 | . . . . . 1 . . . . . . . Best Kill Streak 5 | . 3 1 . . 5 . 4 1 . 3 3 . Combat Bots Only 5 | . 3 . . . 5 . 4 1 . 3 3 . Max Kills in Single Turn 2 | . 1 1 . . 2 . 2 1 . 1 1 . Gunslinging . | . . . . . . . . . . . . . Exploded 2 | . . . . . . . 2 . . . . . Melee 1 | . . . . . . . . . . . 1 . Uniques/NPCs Destroyed . | . . . . . . . . . . . . . Combat | -11 -10 -10 -10 -9 -8 -7 -7 -7 -7 -6 -6 -5 -------- Run | Yrd Mat Min Exi Min Mat Fac Low Low Dat Pro Fac Fac Hostile Shots Fired 587 | . 11 . . . 143 . 70 31 . 25 157 150 Missed 178 | . 4 . . . 43 . 23 9 . 5 34 60 Damage Taken 8775 | . 59 . . . 1573 88 924 534 . 541 3221 1835 Core 2813 | . . . . . 453 20 118 78 . 350 784 1010 Absorbed by Shields 126 | . . . . . . . . . . . . 126 Ignored by Resistances 62 | . . . . . . . . . . . . 62 Core Remaining (%) 48 | 100 . . . 100 17 . . . . 19 7 . Volleys Fired 151 | . 17 3 1 . 74 . 21 1 . 11 12 11 Largest 3 | . 2 2 2 . 2 . 3 3 . 1 2 1 Hottest 146 | . 40 40 40 . 46 . 101 146 . 85 103 81 Shots Fired 261 | . 34 6 2 . 140 . 31 3 . 11 23 11 Gun 229 | . 34 6 2 . 140 . 9 3 . 11 23 1 Cannon 25 | . . . . . . . 18 . . . . 7 Launcher 7 | . . . . . . . 4 . . . . 3 Special . | . . . . . . . . . . . . . Kinetic 236 | . 34 6 2 . 140 . 27 2 . 7 11 7 Thermal 18 | . . . . . . . . 1 . 4 12 1 Explosive 7 | . . . . . . . 4 . . . . 3 Electromagnetic . | . . . . . . . . . . . . . Robot Hit Streak 12 | . 5 6 . . 8 . 6 1 . 7 12 4 Robot Miss Streak 10 | . 6 2 . . 10 . 6 3 . 2 4 3 Penetration Max . | . . . . . . . . . . . . . Secondary Targets 2 | . 2 . . . . . . . . . . . Max Gunslinging Chain 1 | . 1 . . . . . . . . . . . Shots Hit Robots 187 | . 16 3 . . 90 . 18 1 . 8 45 6 Core Hits 106 | . 9 2 . . 51 . 20 1 . 4 17 2 Critical Kills 1 | . . . . . 1 . . . . . . . Critical Parts Destroyed 4 | . . . . . 4 . . . . . . . Critical Strikes 9 | . . . . . 5 . 1 . . . 2 1 Destroy 5 | . . . . . 5 . . . . . . . Blast 2 | . . . . . . . 1 . . . . 1 Sever 2 | . . . . . . . . . . . 2 . Melee Attacks 35 | . . . . . . . . . . . 35 . Impact . | . . . . . . . . . . . . . Slashing 35 | . . . . . . . . . . . 35 . Piercing . | . . . . . . . . . . . . . Sneak Attacks 1 | . . . . . . . . . . . 1 . Combat Hostiles . | . . . . . . . . . . . . . Follow-up Attacks . | . . . . . . . . . . . . . Damage Inflicted 4189 | . 140 28 . . 1193 . 785 22 . 136 1489 396 Guns 1943 | . 140 28 . . 1193 . 59 22 . 134 367 . Cannons 489 | . . . . . . . 335 . . . . 154 Explosions 633 | . . . . . . . 391 . . . . 242 Melee 1122 | . . . . . . . . . . . 1122 . Ramming 2 | . . . . . . . . . . 2 . . Kinetic 2159 | . 140 28 . . 1193 . 394 22 . 62 166 154 Thermal 273 | . . . . . . . . . . 72 201 . Explosive 633 | . . . . . . . 391 . . . . 242 Electromagnetic . | . . . . . . . . . . . . . Impact . | . . . . . . . . . . . . . Slashing 1122 | . . . . . . . . . . . 1122 . Piercing . | . . . . . . . . . . . . . Highest Corruption 23 | . . . . . 1 . . . . . 23 5 Average Corruption 5 | . . . . . 1 . . . . . 18 4 Corruption Purged . | . . . . . . . . . . . . . Corruption Blocked . | . . . . . . . . . . . . . Effects 14 | . . . . . 4 . . . . . 8 2 Message Errors 2 | . . . . . 1 . . . . . . 1 Matter Fused 4 | . . . . . . . . . . . 4 . Heat Flow Errors 2 | . . . . . 2 . . . . . . . Data Loss (minor) 2 | . . . . . . . . . . . 2 . Data Loss (major) 2 | . . . . . 1 . . . . . . 1 Misdirections 2 | . . . . . . . . . . . 2 . Overload Shots . | . . . . . . . . . . . . . Overflow Damage 20 | . . . . . . . 7 . . . . 13 Projectiles 17 | . . . . . . . 7 . . . . 10 Explosions 3 | . . . . . . . . . . . . 3 Melee . | . . . . . . . . . . . . . Knockbacks 2 | . . . . . . . 1 . . . . 1 Impact . | . . . . . . . . . . . . . Kinetic 2 | . . . . . . . 1 . . . . 1 Secondary . | . . . . . . . . . . . . . Self-Inflicted Damage 102 | . . . . . . . 22 . . 1 . 79 Shots 2 | . . . . . . . 1 . . . . 1 Rammed 1 | . . . . . . . . . . 1 . . Targets Rammed 1 | . . . . . . . . . . 1 . . Kicked . | . . . . . . . . . . . . . Crushed . | . . . . . . . . . . . . . Highest Temperature 307 | . 6 . . . 192 . 45 78 . 120 307 53 Average Temperature 43 | . 6 . . . 51 . 16 40 . 62 113 39 Received Heat Transfer 1695 | . 6 . . . 495 . 210 72 . 12 900 . Siege Activations . | . . . . . . . . . . . . . Robots Corrupted . | . . . . . . . . . . . . . Combat Hostiles . | . . . . . . . . . . . . . Parts Fried . | . . . . . . . . . . . . . Impact Corruptions . | . . . . . . . . . . . . . Robots Melted . | . . . . . . . . . . . . . Combat Hostiles . | . . . . . . . . . . . . . Parts Melted . | . . . . . . . . . . . . . Heat Transferred 650 | . . . . . . . . . . 200 450 . Parts Sabotaged . | . . . . . . . . . . . . . Parts Stolen . | . . . . . . . . . . . . . Parts Stripped . | . . . . . . . . . . . . . Power Chain Reactions . | . . . . . . . . . . . . . Alert | -11 -10 -10 -10 -9 -8 -7 -7 -7 -7 -6 -6 -5 ------- Run | Yrd Mat Min Exi Min Mat Fac Low Low Dat Pro Fac Fac Peak Influence 322 | . 157 66 . . 283 128 . . . . 210 322 Initial 128 | . . 61 . . . 128 . . . . 44 29 Average 101 | . 36 63 . . 141 126 . . . . 92 151 Maximum Alert Level 1 | . . . . . 1 . . . . . 1 1 Low Security (%) 86 | 100 100 100 . 100 73 100 . . . . 97 64 Level 1 13 | . . . . . 26 . . . . . 2 35 Level 2 . | . . . . . . . . . . . . . Level 3 . | . . . . . . . . . . . . . Level 4 . | . . . . . . . . . . . . . Level 5 . | . . . . . . . . . . . . . High Security . | . . . . . . . . . . . . . Max Security . | . . . . . . . . . . . . . Squads Dispatched 12 | . 1 . . . 1 1 . . . . 4 5 Investigation 6 | . . . . . 1 1 . . . . 1 3 Extermination 1 | . . . . . . . . . . . . 1 Reinforcement 4 | . 1 . . . . . . . . . 2 1 Assault 1 | . . . . . . . . . . . 1 . Garrison . | . . . . . . . . . . . . . Intercept . | . . . . . . . . . . . . . Searches Triggered . | . . . . . . . . . . . . . Construction Impeded 1 | . . . . . . . . . . . 1 . Haulers Reinforced . | . . . . . . . . . . . . . Active Scanning Responses . | . . . . . . . . . . . . . Cargo Convoy Interrupts . | . . . . . . . . . . . . . Stealth | -11 -10 -10 -10 -9 -8 -7 -7 -7 -7 -6 -6 -5 --------- Run | Yrd Mat Min Exi Min Mat Fac Low Low Dat Pro Fac Fac Distress Signals 3 | . 1 . . . 1 . . . . . . 1 Communications Jammed . | . . . . . . . . . . . . . Distress Signals . | . . . . . . . . . . . . . Times Spotted 100 | . 13 . . . 25 . 13 2 . 10 18 19 Peak Tracking Total 8 | . 4 . . . 8 . 7 1 . 4 6 6 Tactical Retreats 14 | . 2 . . . 2 . 2 . . 1 2 5 Traps | -11 -10 -10 -10 -9 -8 -7 -7 -7 -7 -6 -6 -5 ------- Run | Yrd Mat Min Exi Min Mat Fac Low Low Dat Pro Fac Fac Traps Triggered 4 | . . . . . 1 2 . . . . . 1 Indirectly . | . . . . . . . . . . . . . Trap Hack Attempts . | . . . . . . . . . . . . . Triggered . | . . . . . . . . . . . . . Disarmed . | . . . . . . . . . . . . . Reprogrammed . | . . . . . . . . . . . . . Reused . | . . . . . . . . . . . . . Traps Extracted . | . . . . . . . . . . . . . Installed . | . . . . . . . . . . . . . Triggered 1 | . . . . . . . . 1 . . . . Machines | -11 -10 -10 -10 -9 -8 -7 -7 -7 -7 -6 -6 -5 ---------- Run | Yrd Mat Min Exi Min Mat Fac Low Low Dat Pro Fac Fac Machines Disabled 1 | . . . . . . . . . . . . 1 Max in Single Turn 1 | . . . . . . . . . . . . 1 Garrison Access 2 | . . . . . 1 . . . . . 1 . Machines Repaired . | . . . . . . . . . . . . . Machines Dismantled . | . . . . . . . . . . . . . Machines Sabotaged . | . . . . . . . . . . . . . Overloaded Fab Kills . | . . . . . . . . . . . . . Hacking | -11 -10 -10 -10 -9 -8 -7 -7 -7 -7 -6 -6 -5 --------- Run | Yrd Mat Min Exi Min Mat Fac Low Low Dat Pro Fac Fac Machines Accessed 27 | . 1 . 4 . 7 2 . . 4 . 3 6 Terminals 13 | . 1 . . . 5 1 . . . . 1 5 Fabricators 2 | . . . . . . . . . . . 1 1 Repair Stations . | . . . . . . . . . . . . . Recycling Units 1 | . . . . . 1 . . . . . . . Scanalyzers 1 | . . . . . . 1 . . . . . . Garrison Access 2 | . . . . . 1 . . . . . 1 . Total Hacks 131 | . 4 . 49 . 22 5 . . 30 . 5 16 Successful 104 | . 2 . 49 . 12 1 . . 30 . 4 6 Failed 27 | . 2 . . . 10 4 . . . . 1 10 Catastrophic 4 | . . . . . . 1 . . . . 1 2 Database Lockouts . | . . . . . . . . . . . . . Manual 6 | . . . . . 3 1 . . . . . 2 Terminals 36 | . 4 . . . 16 2 . . . . 1 13 Fabricators 6 | . . . . . . . . . . . 3 3 Repair Stations . | . . . . . . . . . . . . . Recycling Units 5 | . . . . . 5 . . . . . . . Scanalyzers 3 | . . . . . . 3 . . . . . . Garrison Access 2 | . . . . . 1 . . . . . 1 . Terminal Hacks 92 | . 2 . 49 . 7 . . . 30 . 1 3 Record 60 | . . . 49 . . . . . 11 . . . Part Schematic 11 | . . . . . . . . . 11 . . . Robot Schematic 5 | . . . . . . . . . 5 . . . Robot Analysis 1 | . . . . . 1 . . . . . . . Prototype ID Bank 5 | . 1 . . . 1 . . . 3 . . . Open DSF 1 | . . . . . . . . . . . . 1 Branch Access Points 2 | . . . . . 1 . . . . . 1 . Terminal Index 2 | . . . . . 1 . . . . . . 1 Alert Level 3 | . 1 . . . 1 . . . . . . 1 Investigation Status 1 | . . . . . 1 . . . . . . . Zone Layout 1 | . . . . . 1 . . . . . . . Fabricator Hacks 4 | . . . . . . . . . . . 2 2 Network Status 1 | . . . . . . . . . . . . 1 Load Schematic 2 | . . . . . . . . . . . 1 1 Build 1 | . . . . . . . . . . . 1 . Repair Station Hacks . | . . . . . . . . . . . . . Recycling Unit Hacks 3 | . . . . . 3 . . . . . . . Report Inventory 1 | . . . . . 1 . . . . . . . Retrieve Matter 1 | . . . . . 1 . . . . . . . Retrieve Components 1 | . . . . . 1 . . . . . . . Scanalyzer 1 | . . . . . . 1 . . . . . . Insert Component 1 | . . . . . . 1 . . . . . . Garrison Access Hacks 2 | . . . . . 1 . . . . . 1 . Seal Access 2 | . . . . . 1 . . . . . 1 . Unauthorized Hacks 2 | . . . . . 1 . . . . . . 1 Terminals 2 | . . . . . 1 . . . . . . 1 Botnet 2 | . . . . . 1 . . . . . . 1 Fabricators . | . . . . . . . . . . . . . Repair Stations . | . . . . . . . . . . . . . Recycling Units . | . . . . . . . . . . . . . Scanalyzers . | . . . . . . . . . . . . . Garrison Access . | . . . . . . . . . . . . . Data Cores Recovered . | . . . . . . . . . . . . . Used . | . . . . . . . . . . . . . Hacking Detections 14 | . 1 . . . 5 2 . . . . 1 5 Full Trace Events 8 | . . . . . 3 1 . . . . 1 3 Feedback Events 1 | . . . . . 1 . . . . . . . Corruption 1 | . . . . . 1 . . . . . . . Feedback Blocked . | . . . . . . . . . . . . . Robot Schematics Acquired 5 | . . . . . . . . . 5 . . . Robots Built 3 | . . . . . . . . . . . 3 . Authchips . | . . . . . . . . . . . . . Time 76 | . . . . . . . . . . . 76 . Total Robot Build Rating 15 | . . . . . . . . . . . 15 . Part Schematics Acquired 11 | . . . . . . . . . 11 . . . Parts Built . | . . . . . . . . . . . . . Authchips . | . . . . . . . . . . . . . Time . | . . . . . . . . . . . . . Total Part Build Rating . | . . . . . . . . . . . . . Parts Repaired . | . . . . . . . . . . . . . Time . | . . . . . . . . . . . . . Parts Recycled . | . . . . . . . . . . . . . Recycled Matter . | . . . . . . . . . . . . . Retrieved Matter . | . . . . . . . . . . . . . Retrieved Components 3 | . . . . . 3 . . . . . . . Parts Scanalyzed 1 | . . . . . . 1 . . . . . . Part Schematics Acquired . | . . . . . . . . . . . . . Parts Damaged 1 | . . . . . . 1 . . . . . . Bothacking | -11 -10 -10 -10 -9 -8 -7 -7 -7 -7 -6 -6 -5 ------------ Run | Yrd Mat Min Exi Min Mat Fac Low Low Dat Pro Fac Fac Used RIF Installer . | . . . . . . . . . . . . . Robots Hacked . | . . . . . . . . . . . . . Non-combat . | . . . . . . . . . . . . . Combat . | . . . . . . . . . . . . . Robot Hacks Applied . | . . . . . . . . . . . . . Relay Couplers Released . | . . . . . . . . . . . . . Fabnet Peak Effective % . | . . . . . . . . . . . . . Robots Rewired 2 | . . . . . . . 2 . . . . . Allies Hacked . | . . . . . . . . . . . . . Hacks Repelled . | . . . . . . . . . . . . . Allies | -11 -10 -10 -10 -9 -8 -7 -7 -7 -7 -6 -6 -5 -------- Run | Yrd Mat Min Exi Min Mat Fac Low Low Dat Pro Fac Fac Total Allies 6 | . . . . . . . 2 . . 1 3 . Largest Group 3 | . . . . . . . 2 . . 1 3 . Highest-Rated Group 96 | . . . . . . . 64 . . 96 87 . Highest-Rated Ally 96 | . . . . . . . 32 . . 96 29 . Total Orders . | . . . . . . . . . . . . . Ally Attacks 74 | . . . . . . . 5 . . 23 46 . Total Damage 1607 | . . . . . . . 159 . . 752 696 . Kills 14 | . . . . . . . 2 . . 7 5 . Allies Corrupted . | . . . . . . . . . . . . . Allies Melted . | . . . . . . . . . . . . . Intel | -11 -10 -10 -10 -9 -8 -7 -7 -7 -7 -6 -6 -5 ------- Run | Yrd Mat Min Exi Min Mat Fac Low Low Dat Pro Fac Fac Robot Analysis Total 1 | . . . . . 1 . . . . . . . Derelict Logs Recovered 5 | . . 1 . . . . 1 1 . 2 . . Drone Launches . | . . . . . . . . . . . . . Drone Recoveries . | . . . . . . . . . . . . . Exploration | -11 -10 -10 -10 -9 -8 -7 -7 -7 -7 -6 -6 -5 ------------- Run | Yrd Mat Min Exi Min Mat Fac Low Low Dat Pro Fac Fac Turns Passed 6420 | 68 241 144 752 203 703 198 601 284 188 2119 537 382 Spaces Moved 4011 | 46 149 113 623 168 339 163 436 225 95 555 345 754 Core 776 | 7 . . . . 10 . . 4 95 511 120 29 Treads 173 | . . . . . . . . . . . 173 . Legs 2283 | 39 149 113 623 168 329 163 436 221 . 36 6 . Wheels . | . . . . . . . . . . . . . Hover . | . . . . . . . . . . . . . Flight 779 | . . . . . . . . . . 8 46 725 Fastest Speed 35 | 50 120 120 120 120 120 120 120 120 200 190 40 35 Average Speed 142 | 114 120 120 120 120 128 120 120 125 200 374 106 42 Slowest Speed 500 | 120 120 120 120 120 400 120 120 200 200 500 240 250 Overloaded Moves . | . . . . . . . . . . . . . Propulsion Burnouts . | . . . . . . . . . . . . . Robots Hopped 5 | . . . . . . . . . . . . 5 Cave-ins Triggered . | . . . . . . . . . . . . . Exploration Rate (%) 41 | 3 24 24 92 59 45 6 52 41 77 84 13 25 Regions Visited 12 Branch Regions 7 Pre-discovered Areas 3 | . . 1 1 . . . . . 1 . . . Known Exits Taken . | . . . . . . . . . . . . . Unknown Exits Taken 12 | 1 1 1 1 1 1 1 1 1 1 1 1 . Scrap Searched 4 | . . . . . . . 2 . . 2 . . Spaces Dug 2 | . . . . . . . . . . . 2 . Terrain Destroyed 49 | . . . . . . . 24 . . . 2 23 Melee 2 | . . . . . . . . . . . 2 . Projectile 7 | . . . . . . . 7 . . . . . AOE 40 | . . . . . . . 17 . . . . 23 Terrain Rammed . | . . . . . . . . . . . . . Walls Destroyed . | . . . . . . . . . . . . . Machines Disabled . | . . . . . . . . . . . . . Actions | -11 -10 -10 -10 -9 -8 -7 -7 -7 -7 -6 -6 -5 --------- Run | Yrd Mat Min Exi Min Mat Fac Low Low Dat Pro Fac Fac Total 4395 | 59 183 116 626 169 465 165 481 225 94 582 435 795 Wait 35 | . 11 . . . 21 . . . . . 1 2 Move 3990 | 45 148 112 622 167 338 162 435 224 94 554 344 745 Hop 4 | . . . . . . . . . . . . 4 Pick Up 26 | 1 3 1 . 2 4 1 1 . . 3 9 1 Fast Attach 74 | 7 1 . . . 16 1 8 . . 10 15 16 Attach 23 | 2 1 . . . 2 1 3 . . 1 7 6 Detach 12 | 3 1 . . . 1 . 2 . . . 1 4 Swap 6 | . 1 . . . 3 . . . . . 2 . Drop 26 | 1 . . . . 6 . 2 . . 2 9 6 Fire 151 | . 17 3 1 . 74 . 21 1 . 11 12 11 Melee 35 | . . . . . . . . . . . 35 . Ram 1 | . . . . . . . . . . 1 . . Kick . | . . . . . . . . . . . . . Crush . | . . . . . . . . . . . . . Escape Stasis . | . . . . . . . . . . . . . Rewire 12 | . . . 3 . . . 9 . . . . . Trap . | . . . . . . . . . . . . . Miscellaneous . | . . . . . . . . . . . . . Route ------- -11/Scrapyard -10/Materials (discovered 2 exits: [*Min x2]) -10/Mines -10/Exiles (discovered 2 exits: [*Min x2]) -9/Mines -8/Materials -7/Factory -7/Lower Caves -7/Lower Caves -7/Data Miner -6/Proximity Caves -6/Factory (discovered 5 exits: *Fac / Low x2 / Ext x2) -5/Factory History --------- Turn | Location | Event 17 | -11/Scrapyard | Discovered new exit (range 14) 69 | -11/Scrapyard | Entered Materials 273 | -10/Materials | Discovered new exit (range 9) 305 | -10/Materials | Discovered new exit (range 15) 310 | -10/Materials | Entered Mines 316 | -10/Mines | Build established: Mutant 448 | -10/Mines | Deemed a non-threat by the Exiles lab entrance 449 | -10/Mines | Discovered new exit (range 5) 454 | -10/Mines | Entered Exiles 472 | -10/Exiles | Discovered new exit (range 15) 496 | -10/Exiles | Met 8R-AWN 513 | -10/Exiles | Met EX-HEX 550 | -10/Exiles | Met EX-BIN 671 | -10/Exiles | Met EX-DEC 693 | -10/Exiles | Learned location of Zion (-6) 751 | -10/Exiles | Discovered new exit (range 11) 836 | -10/Exiles | Visited The Gauntlet 1206 | -10/Exiles | Entered Mines 1207 | -9/Mines | Met a Derelict testing a Signal Generator 1214 | -9/Mines | Found Signal Generator 1239 | -9/Mines | Met a Derelict bent on vengeance 1399 | -9/Mines | Discovered new exit (range 8) 1409 | -9/Mines | Entered Materials 1409 | -8/Materials | Evolved 4 slots: Propulsion x2, Utility x2 1497 | -8/Materials | Core integrity fell below 50% 1516 | -8/Materials | Lost 5 parts (1p2n2w) 2105 | -8/Materials | Discovered new exit (range 8) 2107 | -8/Materials | Core integrity fell below 20% 2112 | -8/Materials | Entered Factory 2112 | -7/Factory | Evolved 2 slots: Power x1, Weapon x1 2152 | -7/Factory | Build established: Hacker-Mutant 2290 | -7/Factory | Discovered new exit (range 17) 2310 | -7/Factory | Entered Lower Caves 2312 | -7/Lower Caves | Attracted the attention of an 0b10 outpost 2374 | -7/Lower Caves | Lost 5 parts (1p3n1w) 2631 | -7/Lower Caves | Spotted B-75 Beast 2791 | -7/Lower Caves | Encountered a Warlord checkpoint 2818 | -7/Lower Caves | Learned Factory trap positions 2900 | -7/Lower Caves | Discovered new exit (range 10) 2911 | -7/Lower Caves | Entered another Lower Caves area 2943 | -7/Lower Caves | Learned location of 2 exits from Factory 3133 | -7/Lower Caves | Build established: Scavenger-Gunner 3145 | -7/Lower Caves | Spotted B-75 Beast 3191 | -7/Lower Caves | Discovered new exit (range 2) 3195 | -7/Lower Caves | Entered Data Miner 3195 | -7/Data Miner | Discovered new exit (range 6) 3219 | -7/Data Miner | Lost 11 parts (2p4n2u3w) 3229 | -7/Data Miner | Met Data Miner 3311 | -7/Data Miner | Learned location of Section 7 (-2) 3311 | -7/Data Miner | Acquired the access code to Warlord's prototype stash 3339 | -7/Data Miner | Received God Mode back door access code from Data Miner 3383 | -7/Data Miner | Entered Proximity Caves 3475 | -6/Proximity Caves | Build established: Mutant 3561 | -6/Proximity Caves | Escorted by Enhanced Grunt 3581 | -6/Proximity Caves | Core integrity fell below 50% 3730 | -6/Proximity Caves | Lost 3 parts (1n2w) 4474 | -6/Proximity Caves | Learned Factory terminal intel 4614 | -6/Proximity Caves | Learned Factory emergency access door positions 5418 | -6/Proximity Caves | Core integrity fell below 20% 5489 | -6/Proximity Caves | Discovered new exit (range 6) 5502 | -6/Proximity Caves | Entered Factory 5502 | -6/Factory | Evolved 2 slots: Utility x2 5503 | -6/Factory | Identified exit to Extension 5504 | -6/Factory | Loaded intel: 110 trap records 5506 | -6/Factory | Loaded intel: 28 terminal locations 5576 | -6/Factory | Spotted B-75 Beast 5680 | -6/Factory | Fabricated G-50 Soldier? 5701 | -6/Factory | Allies destroyed B-75 Beast 5724 | -6/Factory | Lost 6 parts (1p2n2u1w) 5841 | -6/Factory | Identified exit to Lower Caves 5918 | -6/Factory | System corruption reached 10% 5940 | -6/Factory | Core integrity fell below 50% 5953 | -6/Factory | Released all parts (4) 5955 | -6/Factory | Core integrity fell below 20% 5976 | -6/Factory | Lost 14 parts (1p5n5u3w) 6037 | -6/Factory | Discovered new exit (range 5) 6039 | -6/Factory | Entered another Factory area 6039 | -5/Factory | Evolved 2 slots: Utility x2 6394 | -5/Factory | Core integrity fell below 50% 6417 | -5/Factory | Core integrity fell below 20% 6421 | -5/Factory | Destroyed by H-66 Slayer with Heavy Assault Rifle Last Messages --------------- 06394_ U-05 Engineer builds a Wall. 06396_ Slug penetrates T-07 Excavator. 06396_ T-07 Excavator destroyed. 06401_ Hacking Suite destroyed. 06401_ Penetrated by Slug. 06409_ Slug penetrates P-70 Sage. 06410_ ALERT: Hostiles spotted, dispatching reinforcements to Terminal F004. 06410_ Destroyed Imp. Remote Datajack. 06410_ P-70 Sage Antigrav System blasted off. 06410_ P-70 Sage knocked back. 06411_ Penetrated by Slug. 06412_ Slug penetrates Wall. 06412_ Wave Gun destroyed. 06414_ System corrupted: Substantial component data lost. 06414_ Penetrated by Slug. 06418_ Critical hit (Destroy). 06418_ Magnetic Acceleration Cannon destroyed. 06419_ Penetrated by Slug. Map ----- +----------------------------------------------------+ | ! ! #??????# #????????+ ## | | #??????# #????????# ########+## | | ! #??????# #????????# # | | / #??????# #????????# # | | #+#################### ########## # | | ####### # | | #?????# # | | #?????/ # | | ######################### T######### #?????# # | | ????????????????????????####???????# #?????# # | | ???#######?????????????????????????# #?????# # | | ???# ####################??????# #?????# # | | #### ???? #?????# + | | ???? #?????# # | | #### ??? #?????# # | | ???# ############???????????##### ##?????# # | | ??####+###??????????????????????? ?# #??????# # | | ??# ! #??????????????????????? ?# #??????# # | | ??# ! !#??????????????????????? # #??????# # | | ??# #??????????????????????? # #?##?### # | | ### ! #???????????????????????? # ## ## | | + !! #???????????????????????? # | | ### !#????????????????????????? # | | ??########????????????????????????? / | | ?????????????????#################### ! | | ?????????????????# @ # | | ?????????????????# % %u | | ?????????????????# h ###### | | ?????????????????# ; ##????? | | ?????????????????# p h #?????? | | ?????????????????# % ##????? | | ?????????????????# p % #????? | | ?????????????????# % ##????? | | ?????????????????#########;####### ###??? | | ?????????????????????????###???# #??? | | ???????????????????????????????# * #??? | | ???????????????????????????????# #??? | | ??????????????????????????????# "" #??? | | ??????????????????????????????# """ #??? | | ??????????????????????????????# """ ?? | | ??????????????????????????????# #? | | ??????????????????????????????# ? | | ?????????????????????????????? #? | | ??????????????????????????????## #? | | ???????????????????????????????# #? | | ???????????????????????????????# # #? | | ???????????????????????????????### ? | | ?????????????????????????????????###### """" | | ???????????????????????????????????????##### | | ???????????????????????????????????????????? ""?? | +----------------------------------------------------+ Best States ------------- Heat Dissipation 75 Coolant Potential 80 Energy Generation 34 Energy Capacity 340 Matter Stores 300 Matter Capacity 300 Sight Range 22 Terrain Scan Density 10 ECM Strength 1 Armor Coverage 225 Resistance: EM 25 Evasion (%) 73 Melee Accuracy 8 Launcher Accuracy 40 Recoil Reduction 4 Matter Filtering 30 Kinecelleration 30 Offensive Hacking 10 Defensive Hacking 10 Item Schematics ----------------- Combat Drone Bay | -7/Data Miner | Free Lgt. Regenerative Plating | -7/Data Miner | Free Cld. Aerolev Unit | -7/Data Miner | Free Gravity Neutralizer | -7/Data Miner | Free Gui. EMP Blaster | -7/Data Miner | Free Arm. Medium Treads | -7/Data Miner | Free Imp. Shock Absorption System | -7/Data Miner | Free Imp. Plasma Cutter | -7/Data Miner | Free Hvy. Machine Gun | -7/Data Miner | Free Adv. Field Recycling Unit | -7/Data Miner | Free Imp. Dynamic Insulation System | -7/Data Miner | Free Robot Schematics ------------------ G-50 Soldier | -7/Data Miner | Free X-62 Marksman | -7/Data Miner | Free A-15 Conveyor | -7/Data Miner | Free L-41 Fighter | -7/Data Miner | Free S-27 Virus | -7/Data Miner | Free Fabricated ------------ G-50 Soldier | x3 | -6/Factory Alien Tech Used ----------------- None Achievements -------------- None Challenges ------------ None Game ------ Seed ThermalCompactChip Manual? 0 Play Time 01:00:56 Cumulative 44.2 hours Start 2024.07.14 @ 22:11:34 End 2024.07.14 @ 23:36:41 Sessions 1 Manual Loads 0 Difficulty Rogue Special Mode None Game No. 48 Rogue 4 Adventurer 44 Explorer 0 Win Type - Total 1 Types 0/0/1/0/0/0/0/0/0 Lore% 16 Gallery% 47 Achievement% 32 Wizard Run 0 Options --------- Layout 1 ASCII 0 Keyboard 1 Movement Arrows Keybinds 0 Fullscreen 1 Font 24/Smallcaps Map View 50x35 Zoom Use 0% Tactical HUD 1 Map Filters NONE Filters NONE Steam 1 RUN: 8ac9ae96-809a-4202-9f70-b210171c7229